fUSD/lending_fUSD_20240609
["ID","MTS","AMOUNT","RATE_DAILY","PERIOD"]
[328908987,1717973450846,-160.01434189,0.00028329,2]
[328908988,1717973450858,-150.0,0.00028337,2]
[328908989,1717973450869,-705.37255,0.00028343,2]
[328908990,1717973450880,-664.967759,0.00028343,2]
[328908991,1717973450890,-467.257884,0.00028343,2]
[328908992,1717973450902,-954.420625,0.00028343,2]
[328908993,1717973450913,-598.031938,0.00028343,2]
[328908994,1717973450924,-861.166889,0.00028343,2]
[328908995,1717973450935,-155.05213022,0.00028412,2]
[328908996,1717973450946,-154.30600323,0.0002842,2]
[328908997,1717973450958,-160.01434189,0.00028438,2]
[328908998,1717973450971,-460.58,0.00028456,2]
[328908999,1717973450983,-150.0,0.0002847,2]
[328909000,1717973450995,-150.0,0.00028491,2]
[328909001,1717973451007,-354.0,0.000285,2]
[328909002,1717973451018,-162.25045898,0.00028502,2]
[328909003,1717973451032,-5444.16311086,0.00028502,2]
[328909004,1717973451043,-160.01434189,0.00028507,2]
[328909005,1717973451056,-150.0,0.00028513,2]
[328909006,1717973451067,-150.0,0.00028517,2]
[328909007,1717973451077,-167.46582598,0.00028541,2]
[328909008,1717973451088,-150.0,0.00028544,2]
[328909009,1717973451099,-150.0,0.00028559,2]
[328909010,1717973451110,-154.30600323,0.00028566,2]
[328909011,1717973451121,-151.29914083,0.0002861,2]
[328909012,1717973451131,-150.0,0.00028626,2]
[328909013,1717973451142,-150.0,0.00028634,2]
[328909014,1717973451153,-100000.0,0.00028641,2]
[328909015,1717973451163,-3520.3188,0.00028641,2]
[328909016,1717973451174,-500.0,0.00028641,2]
[328909017,1717973451185,-13027.8177,0.00028641,2]
[328909018,1717973451195,-155.60386588,0.00028655,2]
[328909019,1717973451206,-1000.0,0.00028677,2]
[328909020,1717973451217,-93215.05980953,0.0002868,2]
[328909021,1717973451230,-155.27280809,0.00028682,2]
[328909022,1717973451242,-150.0,0.00028683,2]
[328909023,1717973451253,-150.0,0.00028686,2]
[328909024,1717973451264,-150.0,0.00028701,2]
[328909025,1717973451276,-155.60386588,0.00028709,2]
[328909026,1717973451287,-929.52174178,0.00028712,2]
[328909027,1717973451297,-150.0,0.00028727,2]
[328909028,1717973451309,-2549.80161279,0.00028739,2]
[328909029,1717973451322,-306.42668534,0.0002874,2]
[328909030,1717973451333,-158.46582115,0.0002874,2]
[328909031,1717973451344,-150.0,0.0002874,2]
[328909032,1717973451356,-154.30600323,0.00028741,2]
[328909033,1717973451366,-38385.99424467,0.00028741,2]
[328909034,1717973464611,376.0,0.0001959,15]
[328909035,1717973465113,376.0,0.0001958,15]
[328909036,1717973465728,376.0,0.0001957,15]
[328909039,1717973785320,-3000.0,0.000136,2]
[328909040,1717973832949,-151.1213246,0.000136,2]
[328909041,1717974342169,-268.19679519,0.00012969,2]
[328909042,1717974365868,-2000.0,0.00012967,2]
[328909043,1717974367898,-875.9454186,0.00012967,2]
[328909044,1717974367922,-206.00138128,0.00012967,2]
[328909045,1717974367946,-626.1102705,0.00012968,2]
[328909046,1717974367969,-213.72825615,0.00012969,2]
[328909047,1717974367994,-78.21467347,0.0001297,2]
[328909048,1717974368787,-175.14241196,0.0001297,2]
[328909049,1717974368812,-864.46411372,0.0001297,2]
[328909050,1717974368836,-150.0,0.0001297,2]
[328909051,1717974368860,-150.0,0.0001297,2]
[328909052,1717974368883,-660.39347432,0.00012971,2]
[328909053,1717974369795,-1241.01938161,0.00012971,2]
[328909054,1717974369825,-758.98061839,0.00012972,2]
[328909055,1717974370587,-1084.4899953,0.00012972,2]
[328909056,1717974370612,-915.5100047,0.00013079,2]
[328909057,1717974371623,-327.98166464,0.00012966,2]
[328909058,1717974371649,-380.4899953,0.00013079,2]
[328909059,1717974371675,-162.604899,0.0001318,2]
[328909060,1717974377731,664.0,0.0001297,2]
[328909061,1717974487515,-253.35708543,0.00013393,2]
[328909062,1717974487542,-206.00138128,0.00013393,2]
[328909063,1717974487571,-1540.64153329,0.00013394,2]
[328909064,1717974488025,-2000.0,0.00013394,2]
[328909065,1717974488474,-2000.0,0.00013394,2]
[328909071,1717974558202,-235.24928445,0.00013259,2]
[328909072,1717974558231,-150.0,0.00013393,2]
[328909073,1717974558258,-268.27696931,0.00013393,2]
[328909074,1717974558289,-14978.56819888,0.00013394,2]
[328909075,1717974558319,-239.63412352,0.00014265,2]
[328909076,1717974558348,-210.0,0.00014732,2]
[328909077,1717974558376,-240.0,0.00016206,2]
[328909078,1717974558402,-403.67224275,0.00016568,2]
[328909079,1717974558427,-338.79174546,0.00017258,2]
[328909080,1717974558454,-325.71547967,0.00017258,2]
[328909081,1717974558482,-864.16592505,0.00017259,2]
[328909082,1717974558511,-1939.28579508,0.00017259,2]
[328909083,1717974558540,-299.99,0.00017259,4]
[328909084,1717974558567,-499.99,0.0001726,2]
[328909085,1717974558594,-1390.0826899,0.00017534,2]
[328909086,1717974569117,-8477.5573101,0.00017534,2]
[328909087,1717974569142,-959.21479376,0.00018592,2]
[328909088,1717974569166,-163.22,0.000194,2]
[328909089,1717974569190,-1040.19756488,0.00019569,2]
[328909090,1717974569213,-1047.10843307,0.0001957,2]
[328909091,1717974569237,-280.1,0.00019781,2]
[328909092,1717974569261,-226.67450997,0.000201,2]
[328909093,1717974569285,-1670.0,0.000223,3]
[328909094,1717974569308,-561.0,0.000223,3]
[328909095,1717974569333,-323.89778936,0.00022813,2]
[328909096,1717974573168,-546.7610585,0.00017259,2]
[328909097,1717974581519,786.24788383,0.00017259,2]
[328909098,1717974623900,226.67450997,0.000201,2]
[328909099,1717974630893,764.03891269,0.00017259,2]
[328909112,1717974633194,-162.604899,0.00022713,2]
[328909113,1717974633204,-240.719101,0.00022813,2]
[328909115,1717974633681,-18.79310964,0.00022813,2]
[328909117,1717974633691,-1287.44689036,0.00024148,2]
[328909131,1717974638864,-758.17310964,0.00024148,2]
[328909132,1717974638873,-242.833506,0.0002415,2]
[328909133,1717974638886,-542.31747195,0.0002415,2]
[328909134,1717974638897,-159.57358818,0.00024151,2]
[328909135,1717974638909,-816.01641182,0.00024151,2]
[328909136,1717974638919,-182.79,0.00024384,2]
[328909137,1717974638934,-150.13,0.00024384,2]
[328909138,1717974638943,-1207.39,0.00024393,2]
[328909139,1717974638953,-190.34,0.00024529,2]
[328909140,1717974638964,-5450.27,0.00024529,2]
[328909141,1717974638974,-1022.41,0.00024537,2]
[328909142,1717974638985,-4219.91,0.00024567,2]
[328909143,1717974638995,-250.0,0.00024603,2]
[328909144,1717974639004,-1101.71,0.00024625,2]
[328909145,1717974639014,-150.0,0.00024641,2]
[328909146,1717974639024,-176.92,0.00024649,2]
[328909147,1717974639034,-394.78,0.00024649,2]
[328909148,1717974639044,-250.0,0.00024658,2]
[328909149,1717974639056,-200.0,0.00024731,2]
[328909150,1717974639065,-250.0,0.00024758,2]
[328909151,1717974639075,-358.3,0.00024794,2]
[328909152,1717974639084,-157.68,0.00024826,2]
[328909153,1717974639094,-2317.53693812,0.00024974,2]
[328909154,1717974639103,-1000.0,0.00024991,2]
[328909155,1717974639112,-329.44740147,0.00024997,2]
[328909156,1717974639122,-406.96378159,0.00024997,2]
[328909157,1717974639132,-267.42084264,0.00024997,2]
[328909158,1717974639142,-1052.98663514,0.00024997,2]
[328909159,1717974639152,-166.43094977,0.00024997,2]
[328909160,1717974639161,-186.98033609,0.00024997,2]
[328909164,1717974641885,226.67450997,0.000201,2]
[328909165,1717974642181,-344.16978334,0.00024997,2]
[328909166,1717974642191,-1261.47243226,0.00024998,2]
[328909167,1717974642202,-3099.35721507,0.00024998,2]
[328909168,1717974642212,-1493.36436777,0.00024998,2]
[328909169,1717974642223,-161.27128855,0.00024998,2]
[328909170,1717974642233,-4094.91491301,0.00024998,2]
[328909171,1717974642246,-394.0113545,0.00024998,2]
[328909172,1717974642255,-192.78914061,0.00024999,2]
[328909173,1717974642267,-409.45999997,0.00024999,2]
[328909174,1717974642279,-2219.95238695,0.00024999,2]
[328909175,1717974642289,-217.40040456,0.00024999,2]
[328909176,1717974642298,-623.12782107,0.00024999,2]
[328909177,1717974642310,-3152.07759059,0.00025,2]
[328909178,1717974642321,-775.77409809,0.00025,2]
[328909179,1717974642333,-7849.97467302,0.00025,2]
[328909180,1717974642344,-2692.67283853,0.00025,2]
[328909181,1717974642354,-1250.0,0.00025,2]
[328909182,1717974642363,-583.41,0.00025077,2]
[328909183,1717974642374,-82.31716147,0.00025472,2]
[328909184,1717974642386,-75.36283853,0.00025472,2]
[328909185,1717974642398,-946.67803147,0.00025739,2]
[328909186,1717974642699,-2207.23196853,0.00025739,2]
[328909187,1717974642709,-899.89347726,0.00025768,2]
[328909188,1717974642722,-100.10652274,0.00025768,2]
[328909189,1717974642733,-232.68,0.00025809,2]
[328909190,1717974642743,-203.53586588,0.00026027,2]
[328909191,1717974642756,-500.09,0.00026027,2]
[328909192,1717974642769,-554.44732763,0.00026027,2]
[328909193,1717974642779,-157.68,0.00026119,2]
[328909194,1717974642788,-155.56456195,0.000263,2]
[328909195,1717974642798,-145.5369688,0.00026345,2]
[328909196,1717974643878,-8.21256721,0.00026345,2]
[328909197,1717974643888,-21.58707675,0.00026356,2]
[328909198,1717974643902,-132.84567098,0.00026356,2]
[328909199,1717974643912,-160.90783806,0.00026359,2]
[328909200,1717974643922,-154.43274773,0.0002639,2]
[328909201,1717974643932,-5774.0,0.00026449,2]
[328909202,1717974643943,-1784.6411916,0.00026449,2]
[328909203,1717974643955,-1745.58285209,0.00026449,2]
[328909204,1717974644472,-1617.77595631,0.00026449,2]
[328909205,1717974644482,-1194.0,0.00026449,2]
[328909206,1717974644492,-160.90783806,0.00026587,2]
[328909207,1717974644503,-154.43274773,0.0002663,2]
[328909208,1717974644514,-153.74953601,0.0002665,2]
[328909209,1717974644524,-154.43274773,0.00026698,2]
[328909210,1717974644535,-154.43274773,0.00026719,2]
[328909211,1717974644546,-155.05213024,0.00026732,2]
[328909212,1717974644556,-155.27280809,0.00026746,2]
[328909213,1717974644570,-153.15701281,0.00026749,2]
[328909214,1717974644580,-153.74953601,0.00026844,2]
[328909215,1717974644590,-154.43274773,0.00026898,2]
[328909216,1717974644600,-150.0,0.00027,2]
[328909217,1717974644612,-1300.0,0.00027,2]
[328909218,1717974644621,-876.14059755,0.00027098,2]
[328909219,1717974645617,-101.85940245,0.00027098,2]
[328909221,1717974645627,-211.0,0.00027098,2]
[328909223,1717974645637,-410.0,0.00027098,2]
[328909225,1717974645647,-484.774,0.00027098,2]
[328909227,1717974645658,-1547.275,0.00027098,2]
[328909229,1717974645667,-150.0,0.00027098,2]
[328909231,1717974645678,-808.0,0.00027098,2]
[328909233,1717974645688,-165.0,0.00027098,2]
[328909235,1717974645698,-446.0,0.00027098,2]
[328909237,1717974645708,-2405.0,0.00027098,2]
[328909239,1717974645718,-1304.0,0.00027098,2]
[328909241,1717974645728,-3175.0,0.00027098,2]
[328909243,1717974645739,-545.0,0.00027098,2]
[328909245,1717974645749,-151.26863206,0.00027108,2]
[328909247,1717974645760,-2011.37343874,0.000272,2]
[328909249,1717974645770,-154.43274773,0.00027235,2]
[328909251,1717974645780,-155.56456195,0.00027238,2]
[328909253,1717974645795,-1022.41,0.00027277,2]
[328909255,1717974645806,-295.14756,0.000273,2]
[328909257,1717974645818,-153.15701281,0.00027314,2]
[328909259,1717974645827,-583.41,0.00027341,2]
[328909261,1717974645836,-151.43,0.00027397,2]
[328909263,1717974645847,-1563.0,0.000274,2]
[328909265,1717974645858,-153.74953601,0.00027419,2]
[328909267,1717974645868,-153.74953601,0.00027496,2]
[328909269,1717974645879,-154.43274773,0.00027547,2]
[328909270,1717974645889,-153.74953601,0.00027576,2]
[328909271,1717974645900,-153.74953601,0.00027645,2]
[328909272,1717974645910,-155.56456196,0.00027692,2]
[328909273,1717974645921,-153.74953601,0.00027692,2]
[328909274,1717974645931,-154.43274773,0.00027699,2]
[328909275,1717974645941,-160.90783806,0.00027755,2]
[328909276,1717974645951,-150.0,0.00027825,2]
[328909277,1717974645961,-154.43274773,0.00027877,2]
[328909278,1717974645972,-170.69196785,0.00027904,2]
[328909279,1717974645982,-150.0,0.0002793,2]
[328909280,1717974645992,-150.0,0.0002794,2]
[328909282,1717974646001,-154.43274773,0.00027949,2]
[328909283,1717974646012,-150.0,0.00027956,2]
[328909284,1717974646022,-155.49979464,0.00027967,2]
[328909285,1717974646032,-224.83196172,0.00028,2]
[328909286,1717974646042,-153.74953601,0.00028011,2]
[328909287,1717974646052,-150.0,0.00028049,2]
[328909288,1717974646064,-153.74953601,0.00028068,2]
[328909289,1717974646074,-150.0,0.00028076,2]
[328909290,1717974646085,-441.59,0.00028082,2]
[328909291,1717974646095,-150.0,0.00028084,2]
[328909292,1717974646105,-154.43274773,0.00028098,2]
[328909293,1717974646116,-150.0,0.00028099,2]
[328909294,1717974646126,-150.0,0.00028101,2]
[328909295,1717974646137,-150.0,0.00028107,2]
[328909296,1717974646147,-150.0,0.00028111,2]
[328909297,1717974646157,-150.0,0.00028188,2]
[328909298,1717974646168,-150.0,0.00028211,2]
[328909299,1717974646178,-150.0,0.00028211,2]
[328909300,1717974646188,-150.0,0.00028262,2]
[328909301,1717974646198,-150.0,0.00028263,2]
[328909302,1717974646209,-259.92084161,0.00028264,2]
[328909303,1717974646219,-150.0,0.00028265,2]
[328909304,1717974646229,-150.0,0.00028266,2]
[328909305,1717974646239,-155.05213024,0.0002827,2]
[328909306,1717974646250,-150.0,0.00028297,2]
[328909307,1717974646260,-150.0,0.00028306,2]
[328909308,1717974646270,-150.0,0.00028316,2]
[328909309,1717974646280,-150.0,0.00028327,2]
[328909310,1717974646290,-150.0,0.00028369,2]
[328909311,1717974646300,-150.0,0.00028373,2]
[328909312,1717974646311,-150.0,0.00028386,2]
[328909313,1717974646321,-150.0,0.00028397,2]
[328909314,1717974646331,-383.35468074,0.000284,2]
[328909315,1717974646341,-307.21457613,0.00028402,2]
[328909316,1717974646352,-150.0,0.00028405,2]
[328909317,1717974646362,-150.0,0.00028431,2]
[328909318,1717974646372,-1000.0,0.00028441,2]
[328909319,1717974646381,-2500.0,0.00028441,2]
[328909320,1717974646391,-150.0,0.00028444,2]
[328909321,1717974646401,-155.2728081,0.00028444,2]
[328909322,1717974646411,-1678.18398684,0.0002845,2]
[328909324,1717974647207,-150.0,0.00027786,2]
[328909325,1717974647219,-150.0,0.0002795,2]
[328909326,1717974647230,-150.0,0.00028043,2]
[328909327,1717974647243,-150.0,0.00028092,2]
[328909328,1717974647254,-150.0,0.00028155,2]
[328909329,1717974647264,-150.0,0.00028226,2]
[328909330,1717974647276,-150.0,0.00028238,2]
[328909331,1717974647286,-150.0,0.00028243,2]
[328909332,1717974647296,-150.0,0.00028275,2]
[328909333,1717974647306,-150.0,0.00028283,2]
[328909334,1717974647319,-150.0,0.00028423,2]
[328909335,1717974647330,-840.39644316,0.0002845,2]
[328909336,1717974647342,-150.0,0.0002845,2]
[328909337,1717974647353,-150.0,0.00028458,2]
[328909338,1717974647365,-150.0,0.00028465,2]
[328909339,1717974647377,-150.0,0.00028469,2]
[328909340,1717974647388,-150.0,0.00028482,2]
[328909341,1717974647400,-150.0,0.00028485,2]
[328909342,1717974647412,-40096.0,0.000285,4]
[328909343,1717974647423,-782.98804356,0.000285,5]
[328909344,1717974647545,-0.212681,0.000285,5]
[328909345,1717974647752,-150.0,0.00028125,2]
[328909346,1717974647763,-150.0,0.00028449,2]
[328909347,1717974647774,-216.79927544,0.000285,5]
[328909348,1717974647783,-266.79327674,0.00028522,2]
[328909349,1717974647795,-33.20672326,0.00028522,2]
[328909350,1717974647805,-151.26863206,0.00028526,2]
[328909351,1717974647816,-151.43,0.00028539,2]
[328909352,1717974647826,-187.61078124,0.00028541,2]
[328909353,1717974647836,-323.44664401,0.00028541,2]
[328909354,1717974647846,-27.66798298,0.00028541,2]
[328909355,1717974647858,-972.33201702,0.00028541,2]
[328909356,1717974647868,-150.0,0.00028542,2]
[328909357,1717974647881,-383.35468073,0.00028544,2]
[328909358,1717974647895,-150.0,0.00028545,2]
[328909359,1717974647907,-154.43274773,0.00028557,2]
[328909360,1717974647917,-150.0,0.0002857,2]
[328909361,1717974647927,-153.74953601,0.00028581,2]
[328909362,1717974647939,-300.0,0.00028585,2]
[328909363,1717974647951,-150.0,0.00028587,2]
[328909364,1717974647961,-150.0,0.0002859,2]
[328909365,1717974647972,-150.0,0.00028595,2]
[328909366,1717974647983,-1500.0,0.00028595,2]
[328909367,1717974647994,-150.0,0.00028597,2]
[328909368,1717974648005,-150.0,0.00028599,2]
[328909369,1717974648016,-150.0,0.00028604,2]
[328909370,1717974648027,-204.66407527,0.00028617,2]
[328909371,1717974648313,-986.55259,0.00028617,2]
[328909372,1717974648431,-150.0,0.00027938,2]
[328909373,1717974648442,-150.0,0.0002795,2]
[328909374,1717974648453,-150.0,0.0002817,2]
[328909375,1717974648465,-150.0,0.00028185,2]
[328909376,1717974648475,-150.0,0.0002819,2]
[328909377,1717974648486,-150.0,0.00028468,2]
[328909378,1717974648496,-150.0,0.00028478,2]
[328909379,1717974648508,-308.78333473,0.00028617,2]
[328909380,1717974648519,-150.0,0.0002862,2]
[328909381,1717974648530,-576.38039227,0.00028621,2]
[328909382,1717974665957,226.67450997,0.00021479,2]
[328909384,1717974682399,1529.94595031,0.00021781,7]
[328909385,1717974683884,226.67450997,0.00021479,2]
[328909386,1717974683977,2440.2468,0.00017434,2]
[328909387,1717974687103,19943.26564549,0.000201,2]
[328909388,1717974687128,41079.262,0.000201,2]
[328909395,1717975477627,-334.17412539,0.00016351,2]
[328909396,1717975477655,-155.0,0.00016351,2]
[328909397,1717975477678,-201.64148981,0.00016351,2]
[328909398,1717975477702,-658.95366883,0.00016352,2]
[328909399,1717975477727,-170.95884445,0.00016353,2]
[328909400,1717975477751,-479.27187152,0.00016449,2]
[328909401,1717975479246,-2000.0,0.00016449,2]
[328909402,1717975480705,-1964.76602019,0.00016449,2]
[328909403,1717975480728,-35.23397981,0.0001645,2]
[328909404,1717975481880,-2000.0,0.0001645,2]
[328909405,1717975483180,-2000.0,0.0001645,2]
[328909406,1717975484799,-2000.0,0.0001645,2]
[328909407,1717975486439,-2000.0,0.0001645,2]
[328909408,1717975488088,-235.10641019,0.00016449,2]
[328909409,1717975488113,-1764.89358981,0.0001645,2]
[328909410,1717975489826,-864.46411372,0.00016449,2]
[328909411,1717975489851,-737.23707038,0.0001645,2]
[328909412,1717975489877,-398.2988159,0.00016451,2]
[328909413,1717975500120,-1000.0,0.0001645,2]
[328909414,1717975506482,-150.0,0.0001645,2]
[328909415,1717975596220,200.0,0.00022,30]
[328909416,1717975643173,-296.77241989,0.00013989,2]
[328909417,1717975643196,-155.0,0.00013989,2]
[328909418,1717975643220,-200.0,0.0001399,2]
[328909419,1717975643245,-200.000001,0.0001399,2]
[328909420,1717975643267,-300.0,0.00016453,2]
[328909421,1717975643303,-150.0,0.00016453,2]
[328909422,1717975643328,-3710.52887541,0.00016486,2]
[328909423,1717975756100,-2368.60119743,0.00016396,2]
[328909424,1717975756124,-495.89,0.00016397,2]
[328909425,1717975756147,-5582.53863772,0.00017256,2]
[328909426,1717975756170,-3161.83902958,0.00017257,2]
[328909427,1717975756191,-155.84303163,0.00017257,2]
[328909428,1717975756215,-155.81695383,0.00017257,2]
[328909429,1717975756239,-3350.10835774,0.00017257,2]
[328909430,1717975756261,-155.14565412,0.00017434,2]
[328909431,1717975756282,-420.0,0.0001798,2]
[328909432,1717975756303,-210.0,0.00018098,2]
[328909433,1717975756325,-652.80825333,0.00018164,2]
[328909434,1717975756347,-169.98961112,0.00018164,2]
[328909435,1717975756368,-236.38783519,0.00018164,2]
[328909436,1717975756389,-1438.24637566,0.00018164,2]
[328909437,1717975763180,-2525.45776347,0.00018164,2]
[328909438,1717975763203,-819.24924616,0.00018164,2]
[328909439,1717975763225,-155.0,0.00018164,2]
[328909440,1717975763246,-307.4739256,0.00018164,2]
[328909441,1717975763268,-257.0609662,0.00018165,2]
[328909442,1717975763289,-333.30238715,0.00018165,2]
[328909443,1717975763310,-2559.58251142,0.00018165,2]
[328909444,1717975766127,-7964.81438926,0.00018165,2]
[328909445,1717975766153,-19925.73,0.00018166,2]
[328909446,1717975766177,-250.0,0.00018175,2]
[328909447,1717975766201,-197.39,0.00018213,2]
[328909448,1717975766227,-340.13,0.00018284,2]
[328909449,1717975766251,-250.0,0.00018289,2]
[328909450,1717975766277,-200.0,0.00018295,2]
[328909451,1717975766301,-495.89,0.00018661,2]
[328909452,1717975766326,-411.78978404,0.00019,2]
[328909453,1717975766350,-1145.07108593,0.00019088,2]
[328909454,1717975766374,-190.34,0.00019115,2]
[328909455,1717975766397,-285.0,0.00019649,2]
[328909456,1717975766422,-159.65729885,0.00019899,2]
[328909457,1717975766446,-155.0,0.0002,2]
[328909458,1717975766470,-241.1796,0.0002,2]
[328909459,1717975766494,-1052.85767216,0.00020093,2]
[328909460,1717975766518,-508.68271826,0.00020093,2]
[328909461,1717975766541,-156.15670359,0.00020093,2]
[328909462,1717975766565,-394.76868411,0.00020093,2]
[328909463,1717975766589,-1138.8941264,0.00020093,2]
[328909464,1717975769152,-25892.4371999,0.00020093,2]
[328909465,1717975769176,-170.02187043,0.00020093,2]
[328909466,1717975769205,-239.869756,0.00020094,2]
[328909467,1717975769234,-1363.12480313,0.00020094,2]
[328909468,1717975769261,-301.58849028,0.00020095,2]
[328909469,1717975769289,-186.40225428,0.00020095,2]
[328909470,1717975769315,-309.58554247,0.00020095,2]
[328909471,1717975769339,-223.53128263,0.00020095,2]
[328909472,1717975769364,-3019.98930982,0.00020095,2]
[328909473,1717975769389,-236.26632503,0.00020095,2]
[328909474,1717975769416,-155.20092881,0.00020095,2]
[328909475,1717975769441,-283.9538657,0.00020095,2]
[328909476,1717975769469,-549.42818599,0.00020095,2]
[328909477,1717975769497,-155.34417305,0.00020095,2]
[328909478,1717975769523,-409.18804055,0.00020095,2]
[328909479,1717975769546,-155.54456278,0.00020095,2]
[328909480,1717975769572,-155.15897647,0.00020095,2]
[328909481,1717975769600,-155.39887002,0.00020095,2]
[328909482,1717975769627,-448.59306636,0.00020095,2]
[328909498,1717975833341,-284.22888924,0.00019451,2]
[328909503,1717975833701,-236.22454519,0.00019451,2]
[328909504,1717975833711,-453.70545481,0.00019451,2]
[328909505,1717975833724,-70.98966621,0.00019451,2]
[328909506,1717975833734,-250.0,0.00020054,2]
[328909507,1717975833744,-189.31034429,0.00020095,2]
[328909508,1717975833756,-599.89049949,0.00020095,2]
[328909509,1717975833769,-23.11982,0.00020095,2]
[328909510,1717975833779,-159.1839728,0.00020095,2]
[328909511,1717975833790,-155.92281657,0.00020095,2]
[328909512,1717975833801,-24.6200004,0.00020095,2]
[328909513,1717975834081,-130.93752252,0.00020095,2]
[328909514,1717975834094,-172.86247748,0.00020095,2]
[328909564,1717975839230,-133.35106573,0.00020095,2]
[328909565,1717975839240,-207.15743022,0.00020095,2]
[328909566,1717975839251,-8.13150405,0.00020095,2]
[328909567,1717975839264,-146.86849595,0.00020095,2]
[328909568,1717975839275,-298.39204142,0.00020095,2]
[328909569,1717975839286,-155.0,0.00020095,2]
[328909570,1717975839297,-151.48840401,0.00020095,2]
[328909571,1717975839311,-9.5840245,0.00020095,2]
[328909572,1717975839321,-201.19783396,0.00020095,2]
[328909573,1717975839332,-155.0,0.00020095,2]
[328909574,1717975839342,-176.0108458,0.00020095,2]
[328909575,1717975839353,-253.47550124,0.00020095,2]
[328909576,1717975839365,-1007.38297438,0.00020095,2]
[328909577,1717975839664,-363.10922432,0.00020095,2]
[328909578,1717975839675,-158.57802204,0.00020095,2]
[328909579,1717975839686,-1066.49445789,0.00020096,2]
[328909580,1717975839699,-569.51339423,0.00020096,2]
[328909581,1717975839711,-254.08843872,0.00020096,2]
[328909582,1717975839721,-155.74645844,0.00020096,2]
[328909583,1717975839731,-155.0,0.00020096,2]
[328909584,1717975839742,-627.69120798,0.00020096,2]
[328909585,1717975839753,-473.65586748,0.00020096,2]
[328909586,1717975839764,-157.26656919,0.00020096,2]
[328909587,1717975839774,-155.0,0.00020096,2]
[328909588,1717975839785,-172.65390318,0.00020096,2]
[328909589,1717975839796,-166.78419001,0.00020096,2]
[328909590,1717975839806,-200.0,0.00020096,2]
[328909591,1717975839817,-207.41893702,0.00020096,2]
[328909592,1717975839827,-525.13468166,0.00020096,2]
[328909593,1717975839839,-156.03559658,0.00020096,2]
[328909594,1717975839855,-442.75229546,0.00020096,2]
[328909595,1717975839866,-156.415971,0.00020096,2]
[328909596,1717975839877,-410.02751118,0.00020096,2]
[328909597,1717975839887,-537.72037607,0.00020096,2]
[328909598,1717975839898,-155.0,0.00020097,2]
[328909599,1717975839909,-3124.91289755,0.00020097,2]
[328909601,1717975839923,-4409.55268955,0.00020097,2]
[328909603,1717975839935,-365.75503796,0.00020098,2]
[328909605,1717975839946,-217.00330376,0.00020098,2]
[328909607,1717975839956,-157.20895627,0.00020098,2]
[328909609,1717975839966,-2818.93117646,0.00020098,2]
[328909611,1717975839976,-263.53843887,0.00020098,2]
[328909613,1717975839986,-162.50094375,0.00020098,2]
[328909614,1717975839996,-155.0,0.00020098,2]
[328909615,1717975840007,-282.59682608,0.00020098,2]
[328909616,1717975840021,-241.22340557,0.00020098,2]
[328909617,1717975840032,-1743.3520367,0.00020098,2]
[328909618,1717975840046,-9204.88643182,0.00020098,2]
[328909619,1717975840057,-1348.80949416,0.00020098,2]
[328909620,1717975840068,-2003.92069265,0.00020098,2]
[328909621,1717975840079,-160.49501001,0.00020098,2]
[328909622,1717975840090,-268.8327842,0.00020098,2]
[328909623,1717975840106,-1220.73512947,0.00020098,2]
[328909624,1717975840117,-155.9550727,0.00020098,2]
[328909625,1717975840128,-215.55769344,0.00020098,2]
[328909626,1717975840139,-323.4508426,0.00020098,2]
[328909627,1717975840150,-719.78985056,0.00020098,2]
[328909628,1717975840161,-188.91562555,0.00020098,2]
[328909629,1717975840172,-155.0,0.00020098,2]
[328909630,1717975840184,-159.17664528,0.00020098,2]
[328909631,1717975840195,-789.83702893,0.00020098,2]
[328909632,1717975840206,-1218.13011893,0.00020098,2]